[Event "Chessity Nationale Pupillendag 2019 - Groep G"]
[Site "Meppel, Netherlands"]
[Date "2019.06.29"]
[Round "6.3"]
[White "Gang, Kevin"]
[Black "Zecha, Oscar"]
[Result "0-1"]
[TimeControl "15 min + 10 sec"]
[WhiteElo "691"]
[BlackElo "802"]

1. d4 {[%clk 00:15:19]} Nf6 {[%clk 00:15:19]} {[%emt 00:00:02]} 2. c4 {[%clk
00:15:28]} {[%emt 00:00:01]} e6 {[%clk 00:15:27]} {[%emt 00:00:01]} 3. Nc3
{[%clk 00:15:36]} {[%emt 00:00:02]} Bb4 {[%clk 00:15:33]} {[%emt 00:00:04]} 4.
e3 {[%clk 00:15:40]} {[%emt 00:00:06]} c5 {[%clk 00:15:42]} {[%emt 00:00:02]} 5.
a3 {[%clk 00:15:46]} {[%emt 00:00:04]} cxd4 {[%clk 00:15:50]} {[%emt 00:00:01]}
6. exd4 {[%clk 00:15:48]} {[%emt 00:00:08]} Bxc3+ {[%clk 00:15:58]} {[%emt
00:00:02]} 7. bxc3 {[%clk 00:15:56]} {[%emt 00:00:01]} d5 {[%clk 00:16:06]}
{[%emt 00:00:02]} 8. cxd5 {[%clk 00:16:03]} {[%emt 00:00:04]} exd5 {[%clk
00:16:15]} {[%emt 00:00:02]} 9. Nf3 {[%clk 00:16:11]} {[%emt 00:00:02]} Nc6
{[%clk 00:16:23]} {[%emt 00:00:02]} 10. Bg5 {[%clk 00:16:18]} {[%emt 00:00:03]}
Bg4 {[%clk 00:16:29]} {[%emt 00:00:04]} 11. h3 {[%clk 00:16:27]} {[%emt
00:00:01]} Bh5 {[%clk 00:16:37]} {[%emt 00:00:02]} 12. Bb5 {[%clk 00:16:35]}
{[%emt 00:00:02]} O-O {[%clk 00:16:42]} {[%emt 00:00:05]} 13. O-O {[%clk
00:16:43]} {[%emt 00:00:02]} h6 {[%clk 00:16:51]} 14. Bh4 {[%clk 00:16:50]}
{[%emt 00:00:04]} a6 {[%clk 00:16:57]} 15. Bd3 {[%clk 00:16:55]} {[%emt
00:00:08]} Re8 {[%clk 00:17:01]} 16. Qd2 {[%clk 00:16:50]} {[%emt 00:00:21]}
Qc7 {[%clk 00:17:06]} 17. Rfe1 {[%clk 00:16:45]} {[%emt 00:00:21]} b5 {[%clk
00:17:09]} 18. Rad1 {[%clk 00:16:36]} {[%emt 00:00:26]} Bxf3 {[%clk 00:17:12]}
19. gxf3 {[%clk 00:16:43]} {[%emt 00:00:09]} Nd7 {[%emt 00:00:43]} 20. Re2
{[%clk 00:16:30]} Nb6 {[%clk 00:16:53]} {[%emt 00:00:21]} 21. Bg3 {[%clk
00:16:26]} {[%emt 00:00:13]} Qd7 {[%clk 00:17:00]} {[%emt 00:00:03]} 22. Kh2
{[%clk 00:16:26]} {[%emt 00:00:10]} Rxe2 {[%clk 00:17:02]} {[%emt 00:00:07]} 23.
Bxe2 {[%clk 00:16:26]} {[%emt 00:00:10]} Re8 {[%clk 00:17:10]} {[%emt
00:00:03]} 24. Re1 {[%clk 00:16:29]} {[%emt 00:00:07]} Re6 {[%clk 00:16:55]}
{[%emt 00:00:25]} 25. f4 {[%clk 00:16:24]} {[%emt 00:00:15]} Qe7 {[%clk
00:17:01]} {[%emt 00:00:03]} 26. f5 {[%clk 00:15:59]} {[%emt 00:00:35]} Nc4
{[%clk 00:16:57]} {[%emt 00:00:14]} 27. Qa2 {[%clk 00:15:38]} {[%emt 00:00:30]}
Re4 {[%clk 00:16:52]} {[%emt 00:00:16]} 28. f3 {[%clk 00:14:52]} {[%emt
00:00:56]} Re3 {[%clk 00:17:00]} {[%emt 00:00:02]} 29. Bf4 {[%clk 00:14:47]}
{[%emt 00:00:14]} Rxc3 {[%clk 00:17:02]} {[%emt 00:00:08]} 30. Qa1 {[%clk
00:14:30]} {[%emt 00:00:17]} Qxa3 {[%clk 00:17:07]} {[%emt 00:00:16]} 31. Qxa3
{[%clk 00:14:33]} {[%emt 00:00:07]} Rxa3 {[%clk 00:17:11]} {[%emt 00:00:06]} 32.
Bxc4 {[%clk 00:14:30]} {[%emt 00:00:13]} bxc4 {[%clk 00:17:13]} {[%emt
00:00:08]} 33. Re8+ {[%clk 00:14:23]} {[%emt 00:00:17]} Kh7 {[%clk 00:17:20]}
{[%emt 00:00:03]} 34. Rc8 {[%clk 00:14:16]} {[%emt 00:00:17]} Rxf3 {[%clk
00:17:17]} {[%emt 00:00:13]} 35. Be5 {[%clk 00:13:54]} {[%emt 00:00:33]} Nxe5
{[%clk 00:17:24]} {[%emt 00:00:03]} 36. dxe5 {[%clk 00:14:01]} {[%emt
00:00:03]} Rxf5 {[%clk 00:17:29]} {[%emt 00:00:05]} 37. Rc7 {[%clk 00:13:31]}
{[%emt 00:00:39]} a5 {[%clk 00:17:31]} {[%emt 00:00:09]} 38. Rc5 {[%clk
00:13:32]} {[%emt 00:00:05]} Rxe5 {[%clk 00:17:36]} {[%emt 00:00:08]} 39. Rxa5
{[%clk 00:13:41]} {[%emt 00:00:01]} c3 {[%clk 00:17:44]} {[%emt 00:00:02]} 40.
Rc5 {[%clk 00:13:44]} {[%emt 00:00:06]} Re2+ {[%clk 00:17:52]} {[%emt
00:00:03]} 41. Kg3 {[%clk 00:13:35]} {[%emt 00:00:19]} c2 {[%clk 00:18:01]}
{[%emt 00:00:01]} 42. Kf3 {[%clk 00:13:30]} {[%emt 00:00:14]} Rh2 {[%clk
00:17:58]} {[%emt 00:00:13]} 43. Kg3 {[%emt 00:00:05]} Rd2 {[%clk 00:18:02]}
{[%emt 00:00:05]} 44. Kf3 {[%clk 00:13:45]} {[%emt 00:00:02]} d4 {[%clk
00:18:10]} {[%emt 00:00:02]} 45. Ke4 {[%clk 00:13:51]} {[%emt 00:00:04]} d3
{[%clk 00:18:13]} {[%emt 00:00:07]} 46. Ke3 {[%clk 00:13:54]} {[%emt 00:00:06]}
Rd1 {[%clk 00:18:20]} {[%emt 00:00:04]} 47. h4 {[%clk 00:13:44]} {[%emt
00:00:20]} c1=Q+ 48. Rxc1 Rxc1 {[%clk 00:18:21]} {[%emt 00:00:03]} 49. h5
{[%clk 00:13:52]} {[%emt 00:00:01]} d2 {[%clk 00:18:24]} {[%emt 00:00:07]} 50.
Kxd2 {[%clk 00:14:00]} {[%emt 00:00:02]} Rh1 {[%clk 00:18:31]} {[%emt
00:00:03]} 51. Ke3 {[%clk 00:14:09]} {[%emt 00:00:01]} Rxh5 {[%emt 00:00:02]}
52. Kf4 Rd5 {[%clk 00:18:40]} {[%emt 00:00:10]} 53. Kg4 {[%clk 00:14:26]}
{[%emt 00:00:02]} f5+ {[%clk 00:18:47]} {[%emt 00:00:03]} 54. Kf4 {[%clk
00:14:34]} {[%emt 00:00:01]} g5+ {[%clk 00:18:56]} {[%emt 00:00:01]} 55. Kf3
{[%clk 00:14:42]} {[%emt 00:00:02]} g4+ {[%clk 00:19:05]} {[%emt 00:00:02]} 56.
Kg3 {[%clk 00:14:49]} {[%emt 00:00:03]} Rd4 {[%clk 00:19:08]} {[%emt 00:00:06]}
57. Kf2 {[%clk 00:14:54]} {[%emt 00:00:04]} f4 {[%clk 00:19:16]} {[%emt
00:00:04]} 58. Kg2 {[%clk 00:15:02]} {[%emt 00:00:02]} Rd3 {[%clk 00:19:22]}
{[%emt 00:00:04]} 59. Kf1 {[%clk 00:15:10]} {[%emt 00:00:09]} Rd2 60. Kf2
{[%emt 00:00:10]} g3+ 61. Kf1 {[%clk 00:15:10]} {[%emt 00:00:07]} f3 {[%clk
00:19:43]} {[%emt 00:00:05]} 62. Ke1 {[%clk 00:15:19]} Ra2 {[%clk 00:19:47]}
{[%emt 00:00:06]} 63. Kd1 {[%clk 00:15:22]} {[%emt 00:00:08]} f2 {[%clk
00:19:53]} {[%emt 00:00:04]} 64. Kc1 {[%clk 00:15:30]} {[%emt 00:00:02]} f1=R#
{[%emt 00:00:06]} 0-1

[Event "Chessity Nationale Pupillendag 2019 - Groep G"]
[Site "Meppel, Netherlands"]
[Date "2019.06.29"]
[Round "6.4"]
[White "Ziedses des Plantes, Art G"]
[Black "Talen Alarcón, Milton"]
[Result "0-1"]
[TimeControl "15 min + 10 sec"]
[WhiteElo "597"]
[BlackElo "594"]

1. e4 {[%clk 00:15:19]} {[%emt 00:00:12]} e5 {[%clk 00:15:20]} 2. Nf3 {[%clk
00:15:26]} {[%emt 00:00:03]} Nc6 {[%clk 00:15:28]} {[%emt 00:00:01]} 3. Nc3
{[%clk 00:15:34]} Nf6 {[%clk 00:15:37]} {[%emt 00:00:04]} 4. Bc4 {[%clk
00:15:42]} {[%emt 00:00:01]} h6 {[%clk 00:15:45]} {[%emt 00:00:02]} 5. O-O
{[%clk 00:15:45]} {[%emt 00:00:07]} Bb4 {[%clk 00:15:53]} {[%emt 00:00:02]} 6.
Re1 {[%emt 00:00:33]} Bxc3 {[%clk 00:15:56]} {[%emt 00:00:05]} 7. bxc3 {[%clk
00:15:32]} {[%emt 00:00:02]} d6 {[%clk 00:16:04]} {[%emt 00:00:02]} 8. d4
{[%clk 00:15:27]} {[%emt 00:00:15]} exd4 {[%clk 00:16:10]} {[%emt 00:00:04]} 9.
cxd4 {[%clk 00:15:35]} {[%emt 00:00:02]} Bg4 {[%clk 00:16:06]} {[%emt
00:00:13]} 10. h3 {[%clk 00:15:30]} {[%emt 00:00:17]} Bxf3 {[%emt 00:00:03]} 11.
Qxf3 {[%clk 00:15:36]} {[%emt 00:00:02]} Nxd4 {[%clk 00:16:20]} {[%emt
00:00:03]} 12. Qd1 {[%clk 00:15:11]} {[%emt 00:00:34]} Nc6 {[%clk 00:16:24]}
{[%emt 00:00:07]} 13. Bb5 {[%clk 00:15:14]} {[%emt 00:00:08]} a6 {[%clk
00:16:31]} {[%emt 00:00:03]} 14. Bxc6+ {[%clk 00:15:23]} bxc6 {[%clk 00:16:39]}
{[%emt 00:00:01]} 15. e5 {[%clk 00:15:11]} {[%emt 00:00:22]} dxe5 {[%clk
00:16:47]} {[%emt 00:00:02]} 16. Rxe5+ {[%clk 00:15:06]} {[%emt 00:00:15]} Kf8
{[%clk 00:16:56]} {[%emt 00:00:01]} 17. Qxd8+ {[%clk 00:15:05]} {[%emt
00:00:10]} Rxd8 {[%clk 00:17:04]} {[%emt 00:00:03]} 18. Bf4 {[%clk 00:15:05]}
{[%emt 00:00:11]} Kg8 {[%clk 00:16:53]} {[%emt 00:00:19]} 19. Ree1 {[%clk
00:15:00]} {[%emt 00:00:15]} Kh7 {[%clk 00:16:50]} {[%emt 00:00:13]} 20. Bxc7
{[%clk 00:15:04]} {[%emt 00:00:07]} Rd2 {[%clk 00:16:54]} {[%emt 00:00:06]} 21.
Bf4 {[%clk 00:15:05]} {[%emt 00:00:09]} Rxc2 {[%clk 00:17:00]} {[%emt
00:00:03]} 22. Be5 {[%clk 00:14:35]} {[%emt 00:00:41]} Nd5 {[%clk 00:16:56]}
{[%emt 00:00:12]} 23. Re4 {[%clk 00:14:25]} {[%emt 00:00:22]} Nc3 {[%clk
00:16:56]} {[%emt 00:00:09]} 24. Rg4 {[%clk 00:14:31]} {[%emt 00:00:05]} Rg8
{[%clk 00:16:53]} {[%emt 00:00:13]} 25. a3 {[%clk 00:14:11]} {[%emt 00:00:31]}
Ne2+ {[%clk 00:16:59]} {[%emt 00:00:03]} 26. Kf1 {[%clk 00:14:14]} {[%emt
00:00:06]} c5 {[%clk 00:16:44]} {[%emt 00:00:27]} 27. Re1 {[%clk 00:14:08]}
{[%emt 00:00:15]} Rc1 {[%clk 00:16:37]} {[%emt 00:00:18]} 28. Rxc1 {[%clk
00:14:03]} {[%emt 00:00:14]} Nxc1 {[%clk 00:16:36]} {[%emt 00:00:12]} 29. Rc4
{[%clk 00:14:08]} {[%emt 00:00:04]} Nb3 {[%clk 00:16:32]} {[%emt 00:00:11]} 30.
Bd6 {[%clk 00:14:02]} {[%emt 00:00:19]} Nd2+ {[%clk 00:16:40]} {[%emt
00:00:03]} 31. Ke2 {[%clk 00:14:05]} {[%emt 00:00:07]} Nxc4 {[%clk 00:16:48]}
{[%emt 00:00:02]} 32. Bxc5 {[%clk 00:14:07]} {[%emt 00:00:07]} Re8+ {[%clk
00:16:52]} {[%emt 00:00:06]} 33. Kd3 {[%clk 00:14:13]} {[%emt 00:00:03]} Ne5+
{[%clk 00:16:58]} {[%emt 00:00:03]} 34. Kd4 {[%clk 00:14:21]} {[%emt 00:00:03]}
Nc6+ {[%clk 00:17:05]} {[%emt 00:00:03]} 35. Kd5 {[%clk 00:14:29]} {[%emt
00:00:03]} Ne7+ {[%clk 00:17:06]} {[%emt 00:00:09]} 36. Kd6 {[%clk 00:14:20]}
Nf5+ {[%clk 00:17:13]} {[%emt 00:00:22]} 37. Kd7 {[%clk 00:14:26]} Re1 {[%clk
00:17:11]} {[%emt 00:00:13]} 38. g4 {[%clk 00:14:33]} Rd1+ {[%clk 00:17:03]}
{[%emt 00:00:25]} 39. Kc6 {[%clk 00:14:36]} {[%emt 00:00:06]} Nh4 {[%clk
00:17:01]} {[%emt 00:00:12]} 40. Be7 {[%clk 00:14:35]} {[%emt 00:00:11]} Rc1+
{[%clk 00:17:03]} {[%emt 00:00:09]} 41. Kd6 {[%clk 00:14:38]} Ng6 {[%clk
00:17:09]} {[%emt 00:00:11]} 42. Bd8 {[%clk 00:14:39]} Ra1 {[%clk 00:17:10]}
{[%emt 00:00:16]} 43. h4 {[%clk 00:14:40]} Rxa3 {[%clk 00:17:17]} {[%emt
00:00:14]} 44. h5 {[%clk 00:14:46]} Nf4 {[%clk 00:17:23]} {[%emt 00:00:08]} 45.
Ke5 {[%clk 00:14:49]} Ng2 {[%clk 00:17:23]} {[%emt 00:00:16]} 46. Be7 {[%clk
00:14:49]} Ra5+ {[%clk 00:17:26]} {[%emt 00:00:19]} 47. Ke4 {[%clk 00:14:53]}
Ra1 {[%clk 00:17:24]} {[%emt 00:00:16]} 48. f4 {[%clk 00:14:52]} {[%emt
00:00:12]} Re1+ {[%clk 00:17:29]} {[%emt 00:00:04]} 49. Kf3 {[%clk 00:14:53]}
{[%emt 00:00:08]} Rxe7 {[%clk 00:17:38]} {[%emt 00:00:03]} 50. Kxg2 {[%clk
00:15:01]} {[%emt 00:00:02]} a5 {[%clk 00:17:44]} {[%emt 00:00:03]} 51. f5
{[%clk 00:15:02]} {[%emt 00:00:08]} a4 {[%clk 00:17:54]} {[%emt 00:00:02]} 52.
f6 {[%clk 00:15:08]} {[%emt 00:00:03]} gxf6 {[%clk 00:18:01]} {[%emt 00:00:02]}
53. Kf3 {[%clk 00:15:13]} {[%emt 00:00:06]} a3 {[%clk 00:18:10]} {[%emt
00:00:01]} 54. Kg3 {[%clk 00:15:19]} {[%emt 00:00:03]} a2 {[%clk 00:18:19]}
{[%emt 00:00:01]} 55. Kf3 {[%clk 00:15:27]} {[%emt 00:00:02]} a1=Q {[%emt
00:00:05]} 56. Kg3 {[%clk 00:15:26]} {[%emt 00:00:05]} Qg1+ {[%clk 00:18:31]}
{[%emt 00:00:08]} 57. Kf3 {[%clk 00:15:18]} {[%emt 00:00:18]} Qe3+ {[%clk
00:18:37]} {[%emt 00:00:04]} 58. Kg2 {[%clk 00:15:27]} {[%emt 00:00:01]} Qe2+
{[%clk 00:18:34]} {[%emt 00:00:14]} 59. Kg3 {[%clk 00:15:33]} {[%emt 00:00:04]}
Re3+ {[%clk 00:18:40]} {[%emt 00:00:03]} 60. Kf4 {[%clk 00:15:23]} {[%emt
00:00:19]} Qf3# {[%emt 00:00:06]} 0-1

[Event "Chessity Nationale Pupillendag 2019 - Groep G"]
[Site "Meppel, Netherlands"]
[Date "2019.06.29"]
[Round "6.5"]
[White "Heber, Oskar"]
[Black "Barbier, Emma"]
[Result "0-1"]
[TimeControl "15 min + 10 sec"]
[WhiteElo "453"]
[BlackElo "633"]

1. e4 {[%clk 00:15:19]} c5 {[%clk 00:15:18]} {[%emt 00:00:03]} 2. Nf3 {[%clk
00:15:25]} {[%emt 00:00:04]} Nc6 {[%clk 00:15:27]} {[%emt 00:00:02]} 3. Bc4
{[%clk 00:15:25]} {[%emt 00:00:09]} e5 {[%clk 00:15:28]} {[%emt 00:00:09]} 4.
O-O {[%clk 00:15:25]} {[%emt 00:00:09]} Nf6 {[%clk 00:15:36]} {[%emt 00:00:02]}
5. Nc3 {[%clk 00:15:31]} {[%emt 00:00:04]} d6 {[%clk 00:15:36]} {[%emt
00:00:10]} 6. Ng5 {[%clk 00:15:33]} {[%emt 00:00:06]} Be6 {[%clk 00:15:05]}
{[%emt 00:00:41]} 7. Bxe6 {[%clk 00:15:40]} {[%emt 00:00:04]} fxe6 {[%clk
00:15:12]} {[%emt 00:00:03]} 8. Nxe6 {[%clk 00:15:44]} {[%emt 00:00:05]} Qd7
{[%clk 00:15:08]} {[%emt 00:00:12]} 9. Nxf8 {[%clk 00:15:40]} {[%emt 00:00:17]}
Rxf8 {[%clk 00:15:12]} {[%emt 00:00:05]} 10. d3 {[%clk 00:15:29]} {[%emt
00:00:21]} O-O-O {[%clk 00:15:19]} {[%emt 00:00:04]} 11. Bg5 {[%clk 00:15:34]}
{[%emt 00:00:04]} Kb8 {[%clk 00:15:28]} {[%emt 00:00:03]} 12. Bxf6 {[%clk
00:15:23]} {[%emt 00:00:21]} Rxf6 {[%clk 00:15:30]} {[%emt 00:00:08]} 13. Qh5
{[%clk 00:14:51]} {[%emt 00:00:33]} h6 {[%clk 00:15:36]} {[%emt 00:00:12]} 14.
Nd5 {[%clk 00:14:25]} {[%emt 00:00:31]} Rff8 {[%clk 00:15:34]} {[%emt
00:00:14]} 15. Qh4 {[%clk 00:14:02]} {[%emt 00:00:33]} Nd4 {[%clk 00:15:18]}
{[%emt 00:00:30]} 16. c3 {[%clk 00:13:49]} {[%emt 00:00:23]} Ne2+ {[%clk
00:15:11]} {[%emt 00:00:16]} 17. Kh1 {[%clk 00:13:50]} {[%emt 00:00:04]} Nf4
{[%clk 00:14:53]} {[%emt 00:00:31]} 18. Nxf4 {[%clk 00:13:46]} {[%emt
00:00:17]} exf4 {[%clk 00:15:00]} {[%emt 00:00:02]} 19. g3 {[%clk 00:13:27]}
{[%emt 00:00:29]} f3 {[%clk 00:14:58]} {[%emt 00:00:12]} 20. d4 {[%clk
00:13:10]} {[%emt 00:00:27]} cxd4 {[%clk 00:14:51]} {[%emt 00:00:18]} 21. cxd4
{[%clk 00:13:16]} {[%emt 00:00:03]} Qe6 {[%clk 00:14:38]} {[%emt 00:00:11]} 22.
d5 {[%clk 00:13:07]} {[%emt 00:00:31]} Qe5 {[%emt 00:00:16]} 23. Rab1 {[%clk
00:12:36]} {[%emt 00:00:35]} Rc8 {[%clk 00:14:29]} {[%emt 00:00:20]} 24. Qh3
{[%clk 00:11:48]} {[%emt 00:00:44]} h5 {[%clk 00:14:22]} {[%emt 00:00:30]} 25.
g4 {[%clk 00:11:20]} {[%emt 00:00:33]} g6 {[%clk 00:13:54]} {[%emt 00:00:42]}
26. gxh5 {[%clk 00:11:22]} {[%emt 00:00:07]} gxh5 {[%clk 00:13:53]} {[%emt
00:00:14]} 27. Rfe1 {[%clk 00:10:55]} {[%emt 00:00:35]} Rc2 {[%clk 00:13:24]}
{[%emt 00:00:41]} 28. Qf1 {[%clk 00:10:15]} {[%emt 00:00:42]} Rg8 {[%clk
00:13:10]} {[%emt 00:00:24]} 29. Qh3 {[%clk 00:09:29]} {[%emt 00:00:46]} Rxb2
{[%clk 00:13:03]} {[%emt 00:00:36]} 30. Rxb2 {[%clk 00:09:33]} {[%emt
00:00:06]} Qxb2 {[%clk 00:13:07]} {[%emt 00:00:06]} 31. Qxh5 {[%clk 00:08:53]}
{[%emt 00:00:48]} Qxf2 {[%clk 00:13:09]} {[%emt 00:00:10]} 32. Qe8+ {[%clk
00:08:18]} {[%emt 00:00:41]} Rxe8 {[%clk 00:13:12]} {[%emt 00:00:12]} 33. Rg1
{[%clk 00:08:17]} {[%emt 00:00:09]} Rxe4 {[%clk 00:13:01]} {[%emt 00:00:24]} 34.
Rg8+ {[%clk 00:08:08]} {[%emt 00:00:17]} Kc7 {[%clk 00:13:09]} {[%emt
00:00:04]} 35. Rg7+ {[%clk 00:08:13]} {[%emt 00:00:03]} Kb6 {[%clk 00:13:18]}
{[%emt 00:00:03]} 36. Rg1 {[%clk 00:07:56]} {[%emt 00:00:25]} Re2 {[%clk
00:12:43]} {[%emt 00:00:40]} 37. Ra1 {[%clk 00:07:27]} {[%emt 00:00:44]} Qxh2#
{[%clk 00:12:49]} {[%emt 00:00:05]} 0-1

[Event "Chessity Nationale Pupillendag 2019 - Groep G"]
[Site "Meppel, Netherlands"]
[Date "2019.06.29"]
[Round "7.1"]
[White "Talen Alarcón, Milton"]
[Black "Terlouw, Wouter"]
[Result "0-1"]
[TimeControl "15 min + 10 sec"]
[WhiteElo "594"]
[BlackElo "898"]

1. e4 {[%clk 00:15:18]} c5 {[%clk 00:15:19]} {[%emt 00:00:02]} 2. Nf3 {[%clk
00:15:25]} {[%emt 00:00:02]} Nc6 {[%clk 00:15:27]} {[%emt 00:00:02]} 3. Nc3
{[%clk 00:15:33]} {[%emt 00:00:01]} g6 {[%clk 00:15:36]} {[%emt 00:00:02]} 4.
Bc4 {[%clk 00:15:37]} {[%emt 00:00:04]} Bg7 {[%clk 00:15:43]} {[%emt 00:00:05]}
5. Ng5 {[%clk 00:15:45]} {[%emt 00:00:02]} e6 {[%clk 00:15:51]} {[%emt
00:00:02]} 6. Nf3 {[%clk 00:15:41]} {[%emt 00:00:13]} Nge7 {[%clk 00:15:50]}
{[%emt 00:00:12]} 7. d3 {[%clk 00:15:47]} {[%emt 00:00:04]} d5 {[%clk
00:15:58]} {[%emt 00:00:02]} 8. exd5 {[%clk 00:15:54]} {[%emt 00:00:04]} exd5
{[%clk 00:16:06]} {[%emt 00:00:02]} 9. Bb5 {[%clk 00:15:56]} {[%emt 00:00:07]}
a6 {[%clk 00:16:14]} {[%emt 00:00:03]} 10. Bxc6+ {[%clk 00:16:04]} {[%emt
00:00:01]} bxc6 {[%clk 00:16:23]} {[%emt 00:00:02]} 11. Bg5 {[%clk 00:16:02]}
{[%emt 00:00:11]} O-O {[%clk 00:16:23]} {[%emt 00:00:10]} 12. Nd2 {[%clk
00:15:54]} {[%emt 00:00:17]} Qd6 {[%clk 00:16:29]} {[%emt 00:00:05]} 13. Qe2
{[%clk 00:15:52]} {[%emt 00:00:12]} Re8 {[%clk 00:16:31]} {[%emt 00:00:08]} 14.
O-O-O {[%clk 00:15:59]} {[%emt 00:00:03]} Bf5 {[%clk 00:16:37]} {[%emt
00:00:04]} 15. Bxe7 {[%clk 00:16:05]} {[%emt 00:00:04]} Rxe7 {[%clk 00:16:45]}
{[%emt 00:00:02]} 16. Qf1 {[%clk 00:15:59]} {[%emt 00:00:15]} Rb8 {[%clk
00:16:47]} {[%emt 00:00:09]} 17. Nb3 {[%clk 00:16:02]} {[%emt 00:00:06]} Qf4+
{[%clk 00:16:42]} {[%emt 00:00:16]} 18. Kb1 {[%clk 00:16:07]} {[%emt 00:00:05]}
c4 {[%clk 00:16:49]} {[%emt 00:00:03]} 19. dxc4 {[%clk 00:16:07]} {[%emt
00:00:10]} Qxc4 {[%clk 00:16:49]} {[%emt 00:00:09]} 20. Qxc4 {[%clk 00:16:07]}
{[%emt 00:00:10]} dxc4 {[%clk 00:16:56]} {[%emt 00:00:03]} 21. Na5 {[%clk
00:16:12]} {[%emt 00:00:04]} Bxc3 {[%clk 00:16:59]} {[%emt 00:00:08]} 22. Nxc4
{[%clk 00:16:13]} {[%emt 00:00:09]} Reb7 {[%clk 00:17:01]} {[%emt 00:00:08]} 23.
b3 {[%clk 00:16:18]} {[%emt 00:00:06]} Be6 {[%clk 00:17:03]} {[%emt 00:00:08]}
24. Nd6 {[%clk 00:16:21]} {[%emt 00:00:04]} Rd7 {[%clk 00:17:08]} {[%emt
00:00:08]} 25. Ne4 {[%clk 00:16:20]} {[%emt 00:00:09]} Bg7 {[%clk 00:17:09]}
{[%emt 00:00:10]} 26. Rxd7 {[%clk 00:16:19]} {[%emt 00:00:11]} Bxd7 {[%clk
00:17:18]} {[%emt 00:00:02]} 27. Nc5 {[%clk 00:16:19]} {[%emt 00:00:09]} Bf5
{[%clk 00:17:21]} {[%emt 00:00:08]} 28. Nxa6 {[%clk 00:16:24]} {[%emt
00:00:06]} Rd8 {[%clk 00:17:28]} {[%emt 00:00:02]} 29. a4 {[%clk 00:16:23]}
{[%emt 00:00:10]} Rd2 {[%clk 00:17:35]} {[%emt 00:00:03]} 30. Rc1 {[%clk
00:16:25]} {[%emt 00:00:06]} Rxf2 {[%clk 00:17:39]} {[%emt 00:00:08]} 31. Nb4
{[%clk 00:16:26]} {[%emt 00:00:07]} c5 {[%clk 00:17:33]} {[%emt 00:00:18]} 32.
Nd3 {[%clk 00:16:30]} {[%emt 00:00:03]} Bxd3 {[%clk 00:17:41]} {[%emt
00:00:05]} 33. cxd3 {[%clk 00:16:35]} {[%emt 00:00:05]} Rb2+ {[%clk 00:17:49]}
{[%emt 00:00:02]} 34. Ka1 {[%clk 00:16:42]} {[%emt 00:00:03]} Rxb3+ {[%clk
00:17:54]} {[%emt 00:00:05]} 35. Ka2 {[%clk 00:16:48]} {[%emt 00:00:02]} Rxd3
{[%clk 00:17:49]} {[%emt 00:00:17]} 36. Rxc5 {[%clk 00:16:49]} {[%emt
00:00:09]} Rd8 {[%clk 00:17:58]} {[%emt 00:00:01]} 37. a5 {[%clk 00:16:57]}
{[%emt 00:00:02]} Ra8 {[%clk 00:18:06]} {[%emt 00:00:02]} 38. Rb5 {[%clk
00:17:03]} {[%emt 00:00:05]} Bd4 {[%clk 00:18:12]} {[%emt 00:00:04]} 39. Kb3
{[%clk 00:17:12]} {[%emt 00:00:02]} Kf8 {[%clk 00:18:20]} {[%emt 00:00:01]} 40.
Kc4 {[%clk 00:17:21]} {[%emt 00:00:02]} Bg1 {[%clk 00:18:28]} {[%emt 00:00:01]}
41. h3 {[%clk 00:17:29]} {[%emt 00:00:02]} Ke7 {[%clk 00:18:37]} 42. Rb7+
{[%clk 00:17:37]} {[%emt 00:00:04]} Ke6 {[%clk 00:18:45]} {[%emt 00:00:01]} 43.
Rb5 {[%clk 00:17:39]} {[%emt 00:00:07]} Kd6 {[%clk 00:18:50]} {[%emt 00:00:06]}
44. Kb4 {[%clk 00:17:43]} {[%emt 00:00:07]} Kc6 {[%clk 00:18:56]} {[%emt
00:00:03]} 45. Kc4 {[%clk 00:17:47]} {[%emt 00:00:06]} Bf2 {[%clk 00:19:01]}
{[%emt 00:00:05]} 46. g4 {[%clk 00:17:48]} {[%emt 00:00:09]} Be1 {[%clk
00:19:08]} {[%emt 00:00:02]} 47. Rc5+ {[%clk 00:17:52]} {[%emt 00:00:06]} Kd6
{[%clk 00:19:15]} {[%emt 00:00:02]} 48. Rd5+ {[%clk 00:18:00]} {[%emt
00:00:03]} Ke6 {[%clk 00:19:25]} 49. a6 {[%clk 00:17:50]} {[%emt 00:00:19]}
Rxa6 {[%clk 00:19:32]} {[%emt 00:00:03]} 50. Kd4 {[%clk 00:17:39]} {[%emt
00:00:13]} Ra4+ {[%clk 00:19:37]} {[%emt 00:00:13]} 51. Kc5 {[%clk 00:17:28]}
{[%emt 00:00:21]} Ra5+ {[%clk 00:19:45]} {[%emt 00:00:02]} 52. Kd4 {[%clk
00:17:36]} {[%emt 00:00:02]} Rxd5+ {[%clk 00:19:53]} {[%emt 00:00:02]} 53. Ke4
{[%clk 00:17:45]} f5+ {[%clk 00:19:59]} {[%emt 00:00:05]} 54. gxf5+ {[%clk
00:17:54]} {[%emt 00:00:01]} gxf5+ {[%clk 00:20:08]} {[%emt 00:00:02]} 55. Kf4
{[%clk 00:18:02]} {[%emt 00:00:02]} Rd3 {[%clk 00:20:15]} {[%emt 00:00:02]} 56.
h4 {[%clk 00:18:09]} {[%emt 00:00:03]} Rd4+ {[%clk 00:20:22]} {[%emt 00:00:04]}
57. Kf3 {[%clk 00:18:17]} {[%emt 00:00:02]} Bxh4 {[%clk 00:20:27]} {[%emt
00:00:04]} 58. Ke3 {[%clk 00:18:25]} {[%emt 00:00:03]} Ke5 {[%clk 00:20:35]}
{[%emt 00:00:02]} 59. Kf3 {[%clk 00:18:33]} {[%emt 00:00:02]} f4 {[%clk
00:20:43]} {[%emt 00:00:01]} 60. Kg2 {[%clk 00:18:41]} {[%emt 00:00:02]} Kf5
{[%clk 00:20:49]} {[%emt 00:00:04]} 61. Kf3 {[%clk 00:18:49]} {[%emt 00:00:03]}
Rd3+ {[%clk 00:20:58]} {[%emt 00:00:01]} 62. Kg2 {[%clk 00:18:56]} {[%emt
00:00:02]} f3+ {[%clk 00:21:06]} {[%emt 00:00:02]} 63. Kf1 {[%clk 00:19:04]}
{[%emt 00:00:03]} f2 {[%clk 00:21:14]} {[%emt 00:00:03]} 64. Ke2 {[%clk
00:19:08]} {[%emt 00:00:06]} Rd1 {[%clk 00:21:21]} {[%emt 00:00:02]} 65. Kxd1
{[%clk 00:19:15]} {[%emt 00:00:03]} f1=Q+ {[%emt 00:00:04]} 66. Kd2 Qf2+ {[%clk
00:21:35]} {[%emt 00:00:03]} 67. Kc3 {[%clk 00:19:34]} {[%emt 00:00:01]} Qc5+
{[%clk 00:21:43]} {[%emt 00:00:01]} 68. Kd3 {[%clk 00:19:43]} Ke5 {[%clk
00:21:51]} {[%emt 00:00:02]} 69. Ke2 {[%clk 00:19:51]} {[%emt 00:00:02]} Qc3
{[%emt 00:00:04]} 70. Kf1 {[%clk 00:19:51]} {[%emt 00:00:06]} Qb2 {[%clk
00:22:09]} {[%emt 00:00:03]} 71. Kg1 {[%clk 00:20:08]} {[%emt 00:00:05]} Kf4
{[%clk 00:22:23]} {[%emt 00:00:04]} 72. Kh1 {[%clk 00:20:10]} {[%emt 00:00:04]}
Kf3 {[%clk 00:22:31]} {[%emt 00:00:06]} 73. Kg1 {[%clk 00:20:18]} {[%emt
00:00:02]} Qg2# {[%clk 00:22:39]} {[%emt 00:00:03]} 0-1